fUSD/lending_fUSD_20240412
["ID","MTS","AMOUNT","RATE_DAILY","PERIOD"]
[322225777,1712896231994,-250.0,0.00023249,2]
[322225778,1712896232005,-2336.83,0.00023288,2]
[322225779,1712896232016,-416.66,0.0002334,2]
[322225780,1712896232026,-220.02,0.00023434,2]
[322225781,1712896232037,-220.02,0.00023498,2]
[322225782,1712896232050,-154.72,0.0002353,2]
[322225783,1712896232060,-154.72,0.0002354,2]
[322225784,1712896232070,-154.72,0.0002355,2]
[322225785,1712896232081,-154.72,0.0002356,2]
[322225786,1712896232093,-220.02,0.00023562,2]
[322225787,1712896232104,-154.72,0.00023569,2]
[322225788,1712896232116,-154.72,0.00023579,2]
[322225790,1712896232127,-154.72,0.00023589,2]
[322225792,1712896232138,-154.72,0.00023599,2]
[322225793,1712896232149,-154.72,0.00023609,2]
[322225794,1712896232160,-154.72,0.00023618,2]
[322225795,1712896232170,-220.02,0.00023627,2]
[322225796,1712896232184,-154.72,0.00023628,2]
[322225797,1712896232194,-154.72,0.00023638,2]
[322225798,1712896232206,-154.72,0.00023648,2]
[322225799,1712896232218,-220.02,0.00023691,2]
[322225800,1712896232230,-441.58,0.00023727,2]
[322225801,1712896232242,-220.02,0.00023755,2]
[322225802,1712896232254,-2244.1578479,0.00023789,2]
[322225803,1712896232267,-220.02,0.00023819,2]
[322225804,1712896232289,-12335.10029239,0.00023881,2]
[322225805,1712896232304,-220.02,0.00023884,2]
[322225806,1712896232318,-220.02,0.00023948,2]
[322225807,1712896232331,-571.0,0.00024,2]
[322225808,1712896232344,-155.78834037,0.00024,2]
[322225809,1712896232357,-558.0,0.00024,2]
[322225810,1712896232369,-220.02,0.00024012,2]
[322225811,1712896232382,-220.02,0.00024076,2]
[322225812,1712896232395,-2507.0,0.000241,2]
[322225813,1712896232407,-220.02,0.00024141,2]
[322225814,1712896232418,-220.02,0.00024205,2]
[322225815,1712896232430,-220.02,0.00024269,2]
[322225816,1712896232442,-1098.09905983,0.00024329,2]
[322225817,1712896232455,-220.02,0.00024334,2]
[322225818,1712896232467,-220.02,0.00024398,2]
[322225819,1712896232482,-220.02,0.00024462,2]
[322225820,1712896232494,-220.02,0.00024526,2]
[322225821,1712896232505,-220.02,0.00024591,2]
[322225822,1712896232518,-220.02,0.00024655,2]
[322225823,1712896232530,-800.0,0.00024737,2]
[322225824,1712896232542,-5755.543,0.00024975,2]
[322225825,1712896232554,-2529.404,0.00024975,2]
[322225826,1712896232567,-2463.0,0.00024975,2]
[322225827,1712896232578,-189.69,0.00025199,2]
[322225828,1712896232589,-1764.37,0.0002579,2]
[322225829,1712896232601,-341448.0,0.000259,2]
[322225830,1712896232613,-4521.67672374,0.00025927,2]
[322225831,1712896232626,-441.58,0.00025991,2]
[322225832,1712896232637,-1002.5758,0.00025999,2]
[322225833,1712896232649,-157.041213,0.00026021,5]
[322225834,1712896232662,-157.041213,0.00026022,4]
[322225835,1712896232673,-157.041213,0.00026023,5]
[322225836,1712896232683,-171.041213,0.00026024,6]
[322225837,1712896232694,-173.041213,0.00026025,7]
[322225838,1712896232707,-1098.09905983,0.00026043,3]
[322225839,1712896232722,-200.0,0.00026073,2]
[322225840,1712896232735,-12335.10029239,0.00026862,2]
[322225841,1712896232749,-161.32773537,0.000269,2]
[322225842,1712896232760,-161.32773537,0.000269,2]
[322225843,1712896232773,-161.32773537,0.000269,2]
[322225844,1712896232785,-161.32773537,0.000269,2]
[322225845,1712896232797,-161.32773537,0.000269,2]
[322225846,1712896232809,-161.32773537,0.000269,2]
[322225847,1712896232823,-189.86466397,0.00027162,2]
[322225848,1712896232837,-189.86466397,0.00027211,2]
[322225849,1712896232852,-157.49990436,0.00027288,2]
[322225850,1712896232868,-150.0,0.0002729,2]
[322225851,1712896232880,-150.0,0.0002729,2]
[322225852,1712896232892,-150.0,0.0002729,2]
[322225853,1712896232904,-150.0,0.0002729,2]
[322225854,1712896232916,-151.95,0.0002729,2]
[322225855,1712896232929,-166.88782043,0.00027321,2]
[322225856,1712896232941,-164.03,0.00027367,15]
[322225857,1712896232954,-150.5,0.00027377,15]
[322225858,1712896232966,-158.67,0.00027387,2]
[322225859,1712896232977,-150.5,0.00027387,15]
[322225860,1712896232992,-500.0,0.00027397,2]
[322225861,1712896233345,-500.0,0.00027397,2]
[322225862,1712896233366,-500.0,0.00027397,2]
[322225863,1712896233377,-500.0,0.00027397,2]
[322225864,1712896233386,-500.0,0.00027397,2]
[322225865,1712896233395,-500.0,0.00027397,2]
[322225866,1712896233405,-500.0,0.00027397,2]
[322225867,1712896233415,-500.0,0.00027397,2]
[322225868,1712896233425,-500.0,0.00027397,2]
[322225869,1712896233434,-500.0,0.00027397,2]
[322225870,1712896233444,-500.0,0.00027397,2]
[322225871,1712896233453,-500.0,0.00027397,2]
[322225872,1712896233465,-500.0,0.00027397,2]
[322225873,1712896233474,-611.9971906,0.00027397,2]
[322225874,1712896233490,-500.0,0.00027397,2]
[322225875,1712896233499,-500.0,0.00027397,2]
[322225876,1712896233508,-500.0,0.00027397,2]
[322225877,1712896233517,-502.79527866,0.00027397,2]
[322225878,1712896233528,-501.87293406,0.00027397,2]
[322225879,1712896233538,-500.0,0.00027397,2]
[322225880,1712896233547,-500.0,0.00027397,2]
[322225881,1712896233556,-500.0,0.00027397,2]
[322225882,1712896233566,-500.0,0.00027397,2]
[322225883,1712896233576,-500.0,0.00027397,2]
[322225884,1712896233585,-500.0,0.00027397,2]
[322225885,1712896233594,-500.0,0.00027397,2]
[322225886,1712896233603,-500.0,0.00027397,2]
[322225887,1712896233613,-500.0,0.00027397,2]
[322225888,1712896233622,-500.0,0.00027397,2]
[322225889,1712896233632,-500.0,0.00027397,2]
[322225890,1712896233641,-500.0,0.00027397,2]
[322225891,1712896233650,-406.46879772,0.00027397,2]
[322225892,1712896233659,-500.0,0.00027397,2]
[322225893,1712896233668,-516.41367809,0.00027397,2]
[322225894,1712896233678,-500.0,0.00027397,2]
[322225895,1712896233688,-500.0,0.00027397,2]
[322225896,1712896233697,-507.76340348,0.00027397,2]
[322225897,1712896233708,-592.27,0.00027397,2]
[322225898,1712896233717,-501.72322572,0.00027397,2]
[322225899,1712896233726,-500.0,0.00027397,2]
[322225900,1712896233735,-500.0,0.00027397,2]
[322225901,1712896233745,-500.0,0.00027397,2]
[322225902,1712896233754,-1000.35493928,0.00027397,2]
[322225903,1712896233763,-500.0,0.00027397,2]
[322225904,1712896233772,-500.0,0.00027397,2]
[322225905,1712896233781,-500.0,0.00027397,2]
[322225906,1712896233790,-500.0,0.00027397,2]
[322225907,1712896233799,-496.33987264,0.00027397,2]
[322225908,1712896233808,-500.0,0.00027397,2]
[322225909,1712896233817,-500.0,0.00027397,2]
[322225910,1712896233827,-500.0,0.00027397,2]
[322225911,1712896233836,-500.0,0.00027397,2]
[322225912,1712896233845,-397.82016216,0.00027397,2]
[322225913,1712896233854,-500.0,0.00027397,2]
[322225914,1712896233863,-500.0,0.00027397,2]
[322225915,1712896233872,-500.0,0.00027397,2]
[322225916,1712896233881,-500.0,0.00027397,2]
[322225917,1712896233890,-500.0,0.00027397,2]
[322225918,1712896233899,-500.0,0.00027397,2]
[322225919,1712896233908,-500.0,0.00027397,2]
[322225920,1712896233917,-509.05175237,0.00027397,2]
[322225921,1712896233926,-500.0,0.00027397,2]
[322225922,1712896233935,-500.0,0.00027397,2]
[322225923,1712896233944,-500.0,0.00027397,2]
[322225924,1712896233954,-500.0,0.00027397,2]
[322225925,1712896233963,-513.84880995,0.00027397,2]
[322225926,1712896233981,-500.0,0.00027397,2]
[322225927,1712896233992,-500.0,0.00027397,2]
[322225928,1712896234002,-500.0,0.00027397,2]
[322225929,1712896234012,-500.0,0.00027397,2]
[322225930,1712896234021,-500.0,0.00027397,2]
[322225931,1712896234031,-506.3,0.00027397,2]
[322225932,1712896234041,-500.0,0.00027397,2]
[322225933,1712896234051,-356.01504617,0.00027397,2]
[322225934,1712896234060,-500.0,0.00027397,2]
[322225935,1712896234069,-500.0,0.00027397,2]
[322225936,1712896234079,-500.0,0.00027397,2]
[322225937,1712896234089,-500.0,0.00027397,2]
[322225938,1712896234099,-500.0,0.00027397,2]
[322225939,1712896234110,-500.0,0.00027397,2]
[322225940,1712896234119,-503.94435921,0.00027397,2]
[322225941,1712896234129,-500.0,0.00027397,2]
[322225942,1712896234139,-500.78626703,0.00027397,2]
[322225943,1712896234149,-501.92089956,0.00027397,2]
[322225944,1712896234159,-500.0,0.00027397,2]
[322225945,1712896234169,-500.0,0.00027397,2]
[322225946,1712896234179,-502.06247923,0.00027397,2]
[322225947,1712896234189,-500.0,0.00027397,2]
[322225948,1712896234199,-501.11518506,0.00027397,2]
[322225949,1712896234209,-209.47760435,0.00027397,2]
[322225950,1712896234219,-500.0,0.00027397,2]
[322225951,1712896234228,-500.0,0.00027397,2]
[322225952,1712896234238,-500.0,0.00027397,2]
[322225953,1712896234247,-500.0,0.00027397,2]
[322225954,1712896234257,-301.71827129,0.00027397,2]
[322225955,1712896234267,-500.0,0.00027397,2]
[322225956,1712896234276,-500.0,0.00027397,2]
[322225957,1712896234286,-500.0,0.00027397,2]
[322225958,1712896234296,-500.0,0.00027397,2]
[322225959,1712896234305,-500.76958312,0.00027397,2]
[322225960,1712896234315,-500.0,0.00027397,2]
[322225961,1712896234325,-500.0,0.00027397,2]
[322225962,1712896234335,-500.0,0.00027397,2]
[322225963,1712896234345,-466.25347371,0.00027397,2]
[322225964,1712896234356,-521.47,0.00027397,2]
[322225965,1712896234366,-500.0,0.00027397,2]
[322225966,1712896234377,-500.0,0.00027397,2]
[322225967,1712896234388,-500.0,0.00027397,2]
[322225968,1712896234398,-500.0,0.00027397,2]
[322225969,1712896234409,-501.55366852,0.00027397,2]
[322225970,1712896234419,-500.0,0.00027397,2]
[322225971,1712896234430,-500.0,0.00027397,2]
[322225972,1712896234440,-500.0,0.00027397,2]
[322225973,1712896234450,-376.58107747,0.00027397,2]
[322225974,1712896234461,-503.92555141,0.00027397,2]
[322225975,1712896234471,-500.0,0.00027397,2]
[322225976,1712896234485,-500.0,0.00027397,2]
[322225977,1712896234495,-500.0,0.00027397,2]
[322225978,1712896234505,-500.0,0.00027397,2]
[322225979,1712896234517,-565.26,0.00027397,2]
[322225980,1712896234527,-500.0,0.00027397,2]
[322225981,1712896234537,-500.0,0.00027397,2]
[322225982,1712896234547,-522.1,0.00027397,2]
[322225983,1712896234557,-502.18761237,0.00027397,2]
[322225984,1712896234567,-500.0,0.00027397,2]
[322225985,1712896234576,-500.0,0.00027397,2]
[322225986,1712896234586,-506.96,0.00027397,2]
[322225987,1712896234595,-500.0,0.00027397,2]
[322225988,1712896234605,-500.0,0.00027397,2]
[322225989,1712896234615,-500.0,0.00027397,2]
[322225990,1712896234624,-500.0,0.00027397,2]
[322225991,1712896234634,-500.0,0.00027397,2]
[322225992,1712896234643,-500.0,0.00027397,2]
[322225993,1712896234652,-500.0,0.00027397,2]
[322225994,1712896234662,-556.37,0.00027397,2]
[322225995,1712896234671,-425.62991642,0.00027397,2]
[322225996,1712896234681,-500.0,0.00027397,2]
[322225997,1712896234690,-505.38135972,0.00027397,2]
[322225998,1712896234700,-500.0,0.00027397,2]
[322225999,1712896234711,-500.42524563,0.00027397,2]
[322226000,1712896234721,-500.0,0.00027397,2]
[322226001,1712896234731,-500.0,0.00027397,2]
[322226002,1712896234740,-231.30254471,0.00027397,2]
[322226003,1712896234749,-500.0,0.00027397,2]
[322226004,1712896234759,-500.0,0.00027397,2]
[322226005,1712896234770,-500.0,0.00027397,2]
[322226006,1712896234779,-500.0,0.00027397,2]
[322226007,1712896234789,-500.0,0.00027397,2]
[322226008,1712896234798,-504.96701331,0.00027397,2]
[322226009,1712896234807,-500.0,0.00027397,2]
[322226010,1712896234817,-500.0,0.00027397,2]
[322226011,1712896234828,-500.0,0.00027397,2]
[322226012,1712896234839,-500.0,0.00027397,2]
[322226013,1712896234849,-500.0,0.00027397,2]
[322226014,1712896234859,-500.0,0.00027397,2]
[322226015,1712896234870,-500.0,0.00027397,2]
[322226016,1712896234880,-500.0,0.00027397,2]
[322226017,1712896234889,-500.0,0.00027397,2]
[322226018,1712896234899,-500.0,0.00027397,2]
[322226019,1712896234909,-500.0,0.00027397,2]
[322226020,1712896234920,-508.88550895,0.00027397,2]
[322226021,1712896234930,-500.0,0.00027397,2]
[322226022,1712896234941,-500.0,0.00027397,2]
[322226023,1712896234952,-500.77526762,0.00027397,2]
[322226024,1712896234962,-500.0,0.00027397,2]
[322226025,1712896234973,-500.0,0.00027397,2]
[322226026,1712896234982,-500.0,0.00027397,2]
[322226027,1712896234993,-500.0,0.00027397,2]
[322226028,1712896235003,-500.79627898,0.00027397,2]
[322226029,1712896235012,-500.0,0.00027397,2]
[322226030,1712896235022,-502.58691319,0.00027397,2]
[322226031,1712896235031,-500.0,0.00027397,2]
[322226032,1712896235045,-500.0,0.00027397,2]
[322226033,1712896235055,-503.68136106,0.00027397,2]
[322226034,1712896235064,-500.09875143,0.00027397,2]
[322226035,1712896235074,-500.0,0.00027397,2]
[322226036,1712896235084,-500.0,0.00027397,2]
[322226037,1712896235094,-501.00690415,0.00027397,2]
[322226038,1712896235105,-500.0,0.00027397,2]
[322226039,1712896235114,-500.0,0.00027397,2]
[322226040,1712896235124,-539.51423175,0.00027397,2]
[322226041,1712896235133,-500.0,0.00027397,2]
[322226042,1712896235142,-298.60757417,0.00027397,2]
[322226043,1712896235151,-502.42111403,0.00027397,2]
[322226044,1712896235161,-500.0,0.00027397,2]
[322226045,1712896235171,-500.0,0.00027397,2]
[322226046,1712896235181,-500.0,0.00027397,2]
[322226047,1712896235191,-500.0,0.00027397,2]
[322226048,1712896235200,-500.12444119,0.00027397,2]
[322226049,1712896235210,-502.14349358,0.00027397,2]
[322226050,1712896235220,-500.0,0.00027397,2]
[322226051,1712896235230,-500.0,0.00027397,2]
[322226052,1712896235239,-501.72294838,0.00027397,2]
[322226053,1712896235249,-500.0,0.00027397,2]
[322226054,1712896235258,-1535.56,0.00027397,2]
[322226055,1712896235268,-500.0,0.00027397,2]
[322226056,1712896235277,-502.49140112,0.00027397,2]
[322226057,1712896235287,-500.0,0.00027397,2]
[322226058,1712896235296,-500.0,0.00027397,2]
[322226059,1712896235306,-500.0,0.00027397,2]
[322226060,1712896235315,-500.0,0.00027397,2]
[322226061,1712896235325,-528.26081878,0.00027397,2]
[322226062,1712896235334,-500.0,0.00027397,2]
[322226063,1712896235344,-500.0,0.00027397,2]
[322226064,1712896235353,-500.0,0.00027397,2]
[322226065,1712896235363,-503.00562322,0.00027397,2]
[322226066,1712896235373,-587.53,0.00027397,2]
[322226067,1712896235383,-500.0,0.00027397,2]
[322226068,1712896235393,-480.0,0.00027397,2]
[322226069,1712896235402,-177.03938708,0.00027397,2]
[322226070,1712896235412,-500.0,0.00027397,2]
[322226071,1712896235422,-502.40292053,0.00027397,2]
[322226072,1712896235433,-500.0,0.00027397,2]
[322226073,1712896235443,-500.0,0.00027397,2]
[322226074,1712896235453,-510.71775467,0.00027397,2]
[322226075,1712896235464,-500.0,0.00027397,2]
[322226076,1712896235478,-503.28322815,0.00027397,2]
[322226077,1712896235488,-500.46336099,0.00027397,2]
[322226078,1712896235498,-581.45,0.00027397,2]
[322226079,1712896235508,-500.0,0.00027397,2]
[322226080,1712896235519,-500.76998972,0.00027397,2]
[322226081,1712896235528,-501.15618739,0.00027397,2]
[322226082,1712896235538,-501.09283529,0.00027397,2]
[322226083,1712896235549,-500.1232725,0.00027397,2]
[322226084,1712896235559,-502.52387195,0.00027397,2]
[322226085,1712896235569,-502.48229534,0.00027397,2]
[322226086,1712896235578,-505.00349953,0.00027397,2]
[322226087,1712896235589,-500.0,0.00027397,2]
[322226088,1712896235598,-500.0,0.00027397,2]
[322226089,1712896235609,-501.32164934,0.00027397,2]
[322226090,1712896235618,-500.0,0.00027397,2]
[322226091,1712896235628,-500.0,0.00027397,2]
[322226092,1712896235637,-500.0,0.00027397,2]
[322226093,1712896235647,-500.0,0.00027397,2]
[322226094,1712896235657,-500.0,0.00027397,2]
[322226095,1712896235667,-500.0,0.00027397,2]
[322226096,1712896235677,-500.0,0.00027397,2]
[322226097,1712896235686,-501.74314182,0.00027397,2]
[322226098,1712896235696,-500.0,0.00027397,2]
[322226099,1712896235706,-500.0,0.00027397,2]
[322226100,1712896235715,-500.0,0.00027397,2]
[322226101,1712896235725,-500.0,0.00027397,2]
[322226102,1712896235739,-500.0,0.00027397,2]
[322226103,1712896235749,-500.0,0.00027397,2]
[322226104,1712896235758,-539.97633448,0.00027397,2]
[322226105,1712896235768,-500.0,0.00027397,2]
[322226106,1712896235778,-500.0,0.00027397,2]
[322226107,1712896235788,-496.75636565,0.00027397,2]
[322226108,1712896235797,-500.0,0.00027397,2]
[322226109,1712896235807,-500.0,0.00027397,2]
[322226110,1712896235817,-500.0,0.00027397,2]
[322226111,1712896235827,-500.0,0.00027397,2]
[322226112,1712896235837,-500.0,0.00027397,2]
[322226113,1712896235846,-501.44742009,0.00027397,2]
[322226114,1712896235856,-523.51609134,0.00027397,2]
[322226115,1712896235865,-500.0,0.00027397,2]
[322226116,1712896235875,-500.0,0.00027397,2]
[322226117,1712896235884,-502.60563163,0.00027397,2]
[322226118,1712896235894,-156.28490934,0.00027397,2]
[322226119,1712896235904,-500.0,0.00027397,2]
[322226120,1712896235914,-500.0,0.00027397,2]
[322226121,1712896235923,-500.0,0.00027397,2]
[322226122,1712896235933,-500.0,0.00027397,2]
[322226123,1712896235942,-502.80807734,0.00027397,2]
[322226124,1712896235952,-500.0,0.00027397,2]
[322226125,1712896235964,-500.0,0.00027397,2]
[322226126,1712896235974,-500.0,0.00027397,2]
[322226127,1712896235984,-502.62065625,0.00027397,2]
[322226128,1712896235994,-500.0,0.00027397,2]
[322226129,1712896236005,-500.0,0.00027397,2]
[322226130,1712896236016,-497.3984094,0.00027397,2]
[322226131,1712896236025,-500.0,0.00027397,2]
[322226132,1712896236035,-502.83471396,0.00027397,2]
[322226133,1712896236045,-500.0,0.00027397,2]
[322226134,1712896236054,-501.19147114,0.00027397,2]
[322226135,1712896236064,-500.0,0.00027397,2]
[322226136,1712896236074,-1463.88,0.00027397,2]
[322226137,1712896236083,-502.5758519,0.00027397,2]
[322226138,1712896236093,-500.0,0.00027397,2]
[322226139,1712896236103,-500.0,0.00027397,2]
[322226140,1712896236112,-500.0,0.00027397,2]
[322226141,1712896236122,-500.0,0.00027397,2]
[322226142,1712896236131,-502.85756914,0.00027397,2]
[322226143,1712896236141,-500.0,0.00027397,2]
[322226144,1712896236150,-500.0,0.00027397,2]
[322226145,1712896236160,-500.0,0.00027397,2]
[322226146,1712896236169,-500.0,0.00027397,2]
[322226147,1712896236178,-500.0,0.00027397,2]
[322226148,1712896236188,-501.55441491,0.00027397,2]
[322226149,1712896236197,-500.0,0.00027397,2]
[322226150,1712896236208,-500.0,0.00027397,2]
[322226151,1712896236218,-500.0,0.00027397,2]
[322226152,1712896236227,-500.0,0.00027397,2]
[322226153,1712896236236,-500.0,0.00027397,2]
[322226154,1712896236245,-500.0,0.00027397,2]
[322226155,1712896236255,-502.81934886,0.00027397,2]
[322226156,1712896236265,-500.0,0.00027397,2]
[322226157,1712896236274,-330.54922493,0.00027397,2]
[322226158,1712896236284,-524.98567903,0.00027397,2]
[322226159,1712896236293,-505.3,0.00027397,2]
[322226160,1712896236302,-482.29211773,0.00027397,2]
[322226161,1712896236311,-510.41582527,0.00027397,2]
[322226162,1712896236320,-500.0,0.00027397,2]
[322226163,1712896236330,-500.0,0.00027397,2]
[322226164,1712896236339,-500.0,0.00027397,2]
[322226165,1712896236348,-500.0,0.00027397,2]
[322226166,1712896236358,-500.0,0.00027397,2]
[322226167,1712896236367,-524.56257191,0.00027397,2]
[322226168,1712896236377,-500.0,0.00027397,2]
[322226169,1712896236387,-500.0,0.00027397,2]
[322226170,1712896236397,-500.0,0.00027397,2]
[322226171,1712896236407,-500.87882185,0.00027397,2]
[322226172,1712896236416,-500.0,0.00027397,2]
[322226173,1712896236426,-501.86833669,0.00027397,2]
[322226174,1712896236435,-500.0,0.00027397,2]
[322226175,1712896236445,-500.0,0.00027397,2]
[322226176,1712896236456,-500.0,0.00027397,2]
[322226177,1712896236466,-503.60118553,0.00027397,2]
[322226178,1712896236475,-512.37472889,0.00027397,2]
[322226179,1712896236488,-500.0,0.00027397,2]
[322226180,1712896236498,-500.0,0.00027397,2]
[322226181,1712896236507,-500.0,0.00027397,2]
[322226182,1712896236517,-500.0,0.00027397,2]
[322226183,1712896236527,-500.0,0.00027397,2]
[322226184,1712896236537,-500.0,0.00027397,2]
[322226185,1712896236547,-500.0,0.00027397,2]
[322226186,1712896236741,-500.0,0.00027397,2]
[322226187,1712896236759,-308.30583421,0.00027397,2]
[322226188,1712896236769,-500.0,0.00027397,2]
[322226189,1712896236779,-506.72927999,0.00027397,2]
[322226190,1712896236788,-500.0,0.00027397,2]
[322226191,1712896236798,-503.38684721,0.00027397,2]
[322226192,1712896236808,-500.0,0.00027397,2]
[322226193,1712896236817,-500.0,0.00027397,2]
[322226194,1712896236827,-500.0,0.00027397,2]
[322226195,1712896236836,-500.0,0.00027397,2]
[322226196,1712896236845,-500.0,0.00027397,2]
[322226197,1712896236855,-500.0,0.00027397,2]
[322226198,1712896236864,-500.0,0.00027397,2]
[322226199,1712896236873,-500.0,0.00027397,2]
[322226200,1712896236882,-500.0,0.00027397,2]
[322226201,1712896236891,-500.0,0.00027397,2]
[322226202,1712896236900,-500.0,0.00027397,2]
[322226203,1712896236910,-500.0,0.00027397,2]
[322226204,1712896236919,-500.0,0.00027397,2]
[322226205,1712896236929,-500.0,0.00027397,2]
[322226206,1712896236938,-500.0,0.00027397,2]
[322226207,1712896236947,-500.0,0.00027397,2]
[322226208,1712896236958,-500.0,0.00027397,2]
[322226209,1712896236967,-500.0,0.00027397,2]
[322226210,1712896236977,-500.0,0.00027397,2]
[322226211,1712896236986,-500.0,0.00027397,2]
[322226212,1712896236996,-500.0,0.00027397,2]
[322226213,1712896237005,-505.88755924,0.00027397,2]
[322226214,1712896237015,-596.42022004,0.00027397,2]
[322226215,1712896237024,-291.36816732,0.00027397,2]
[322226216,1712896237033,-500.0,0.00027397,2]
[322226217,1712896237042,-500.0,0.00027397,2]
[322226218,1712896237052,-500.0,0.00027397,2]
[322226219,1712896237061,-500.0,0.00027397,2]
[322226220,1712896237071,-500.0,0.00027397,2]
[322226221,1712896237080,-500.0,0.00027397,2]
[322226222,1712896237090,-500.0,0.00027397,2]
[322226223,1712896237099,-500.0,0.00027397,2]
[322226224,1712896237108,-500.0,0.00027397,2]
[322226225,1712896237118,-500.0,0.00027397,2]
[322226226,1712896237127,-502.59640107,0.00027397,2]
[322226227,1712896237136,-500.0,0.00027397,2]
[322226228,1712896237145,-500.0,0.00027397,2]
[322226229,1712896237155,-500.0,0.00027397,2]
[322226230,1712896237164,-500.0,0.00027397,2]
[322226231,1712896237173,-500.0,0.00027397,2]
[322226232,1712896237182,-500.0,0.00027397,2]
[322226233,1712896237191,-500.0,0.00027397,2]
[322226234,1712896237200,-500.0,0.00027397,2]
[322226235,1712896237211,-500.0,0.00027397,2]
[322226236,1712896237220,-199.28522066,0.00027397,2]
[322226237,1712896237229,-500.0,0.00027397,2]
[322226238,1712896237238,-500.0,0.00027397,2]
[322226239,1712896237247,-495.76643815,0.00027397,2]
[322226240,1712896237257,-500.44822633,0.00027397,2]
[322226241,1712896237266,-500.0,0.00027397,2]
[322226242,1712896237275,-500.0,0.00027397,2]
[322226243,1712896237284,-500.0,0.00027397,2]
[322226244,1712896237293,-500.0,0.00027397,2]
[322226245,1712896237302,-524.33596091,0.00027397,2]
[322226246,1712896237311,-500.0,0.00027397,2]
[322226247,1712896237320,-500.0,0.00027397,2]
[322226248,1712896237330,-502.38956099,0.00027397,2]
[322226249,1712896237339,-500.0,0.00027397,2]
[322226250,1712896237348,-500.0,0.00027397,2]
[322226251,1712896237357,-506.18822244,0.00027397,2]
[322226252,1712896237367,-505.84872112,0.00027397,2]
[322226253,1712896237376,-507.47069827,0.00027397,2]
[322226254,1712896237385,-500.0,0.00027397,2]
[322226255,1712896237394,-531.99755403,0.00027397,2]
[322226256,1712896237404,-500.0,0.00027397,2]
[322226257,1712896237413,-500.0,0.00027397,2]
[322226258,1712896237422,-500.0,0.00027397,2]
[322226259,1712896237431,-500.0,0.00027397,2]
[322226260,1712896237441,-500.0,0.00027397,2]
[322226261,1712896237450,-503.05178203,0.00027397,2]
[322226262,1712896237460,-518.84124056,0.00027397,2]
[322226263,1712896237469,-507.79104926,0.00027397,2]
[322226264,1712896237483,-500.0,0.00027397,2]
[322226265,1712896237493,-505.84413257,0.00027397,2]
[322226266,1712896237502,-500.0,0.00027397,2]
[322226267,1712896237512,-500.0,0.00027397,2]
[322226268,1712896237523,-514.17,0.00027397,2]
[322226269,1712896237532,-500.0,0.00027397,2]
[322226270,1712896237541,-500.0,0.00027397,2]
[322226271,1712896237551,-500.0,0.00027397,2]
[322226272,1712896237560,-500.0,0.00027397,2]
[322226273,1712896237570,-611.71,0.00027397,2]
[322226274,1712896237580,-500.0,0.00027397,2]
[322226275,1712896237589,-500.0,0.00027397,2]
[322226276,1712896237599,-500.0,0.00027397,2]
[322226277,1712896237609,-531.63202934,0.00027397,2]
[322226278,1712896237618,-500.0,0.00027397,2]